[Event "27th 4NCL Congress Open 2022"]
[Site "Harrogate"]
[Date "2022.01.22"]
[Round "2.9"]
[White "Nicholson, Jim W R"]
[Black "Jones, Steven A"]
[Result "0-1"]
[ECO "A48"]
[WhiteElo "1963"]
[BlackElo "2212"]
[Annotator "ChessBase"]
[PlyCount "120"]
[EventDate "2022.01.21"]
[EventType "swiss"]
[EventCountry "ENG"]
[SourceTitle "playchess.com"]
[Source "ChessBase"]
[SourceQuality "1"]
[TimeControl "5400+30"]

1. d4 {[%emt 0:00:07]} Nf6 {[%emt 0:01:07]} 2. Nf3 {[%emt 0:00:32]} g6 {[%emt 0:00:43]} 3. Bg5 {[%emt 0:00:15]} Bg7 {[%emt 0:01:37]} 4. Nbd2 {[%emt 0:00:34]} O-O {[%emt 0:00:49]} 5. c3 {[%emt 0:01:40]} d6 {[%emt 0:01:28]} 6. e4 {[%emt 0:01:17]} c5 {[%emt 0:00:50]} 7. dxc5 {[%emt 0:00:59]} dxc5 {[%emt 0:00:06]} 8. Bc4 {[%emt 0:08:32]} Nc6 {[%emt 0:00:49]} 9. Qe2 {[%emt 0:02:23]} Qc7 {[%emt 0:01:06]} 10. O-O {[%emt 0:03:09]} Na5 {[%emt 0:01:13]} 11. Bd3 {[%emt 0:02:33]} Be6 {[%emt 0:03:54]} 12. a4 {[%emt 0:06:53]} Rfd8 {[%emt 0:03:20]} 13. Rfe1 {[%emt 0:11:23]} h6 {[%emt 0:07:03]} 14. Bxf6 {[%emt 0:09:16]} exf6 {[%emt 0:02:19]} 15. Nf1 {[%emt 0:05:02]} Qb6 {[%emt 0:08:21]} 16. Ne3 {[%emt 0:04:27]} Rac8 {[%emt 0:02:24]} 17. Bc4 {[%emt 0:11:22]} Nxc4 18. Nxc4 {[%emt 0:00:03]} Qc6 {[%emt 0:07:45]} 19. Nfd2 {[%emt 0:07:15]} Qc7 {[%emt 0:04:04]} 20. Ne3 {[%emt 0:08:59]} Rd7 {[%emt 0:01:36]} 21. Ndc4 {[%emt 0:02:46]} Rcd8 {[%emt 0:00:35]} 22. Rad1 {[%emt 0:00:57]} Qc6 {[%emt 0:03:49]} 23. f3 {[%emt 0:05:13]} Qxa4 {[%emt 0:00:47]} 24. Ra1 {[%emt 0:01:11]} Qb5 {[%emt 0:03:55]} 25. Rxa7 {[%emt 0:01:51]} Bxc4 {[%emt 0:02:24]} 26. Nxc4 {[%emt 0:02:40]} Rd3 {[%emt 0:00:21]} 27. Ne3 {[%emt 0:01:19]} Qb6 {[%emt 0:00:18]} 28. Raa1 {[%emt 0:01:12]} Rd2 {[%emt 0:02:27]} 29. Nc4 {[%emt 0:00:35]} Rxe2 {[%emt 0:00:20]} 30. Nxb6 {[%emt 0:00:01]} Rxb2 {[%emt 0:00:17]} 31. Nd5 {[%emt 0:00:24]} f5 {[%emt 0:01:45]} 32. Reb1 {[%emt 0:00:30]} Rxb1+ {[%emt 0:03:23]} 33. Rxb1 {[%emt 0:00:01]} fxe4 {[%emt 0:06:26]} 34. fxe4 {[%emt 0:00:05]} Re8 {[%emt 0:01:16]} 35. Rxb7 {[%emt 0:01:11]} Rxe4 {[%emt 0:00:29]} 36. Rc7 {[%emt 0:00:55]} Rc4 {[%emt 0:02:06]} 37. Rc8+ {[%emt 0:00:38]} Kh7 {[%emt 0:01:05]} 38. Rc7 {[%emt 0:00:18]} Bxc3 {[%emt 0:00:43]} 39. Nxc3 {[%emt 0:00:41]} Rxc3 {[%emt 0:00:07]} 40. Rxf7+ {[%emt 0:00:03]} Kg8 {[%emt 0:00:08]} 41. Rf6 {[%emt 0:00:24]} Kg7 {[%emt 0:00:13]} 42. Rc6 {[%emt 0:00:01]} Rc1+ {[%emt 0:04:00]} 43. Kf2 {[%emt 0:00:03]} c4 {[%emt 0:00:08]} 44. h4 {[%emt 0:01:16]} c3 {[%emt 0:00:19]} 45. g4 {[%emt 0:01:17]} c2 {[%emt 0:00:33]} 46. Kg2 {[%emt 0:00:07]} Kf7 {[%emt 0:01:42]} 47. Kh2 {[%emt 0:00:15]} Ke7 {[%emt 0:00:27]} 48. Kg2 {[%emt 0:00:04]} Kd7 {[%emt 0:00:05]} 49. Rc4 {[%emt 0:00:37]} Kd6 {[%emt 0:00:23]} 50. Rc3 {[%emt 0:00:48]} Kd5 {[%emt 0:01:28]} 51. Rc8 {[%emt 0:00:43]} Ke4 {[%emt 0:00:30]} 52. Rc7 {[%emt 0:00:48]} Ke3 {[%emt 0:00:37]} 53. Re7+ {[%emt 0:00:51]} Kf4 {[%emt 0:00:10]} 54. Rc7 {[%emt 0:00:18]} Kxg4 {[%emt 0:00:19]} 55. Rc4+ {[%emt 0:00:03]} Kh5 {[%emt 0:01:21]} 56. Kh2 {[%emt 0:00:20]} Rd1 {[%emt 0:00:30]} 57. Rxc2 {[%emt 0:00:10]} Kxh4 {[%emt 0:00:05]} 58. Rc6 {[%emt 0:00:14]} Rd2+ {[%emt 0:00:11]} 59. Kg1 {[%emt 0:00:08]} Kh5 {[%emt 0:00:34]} 60. Rc5+ {[%emt 0:00:15]} g5 {[%emt 0:00:16]} 0-1

[Event "27th 4NCL Congress Open 2022"]
[Site "Harrogate"]
[Date "2022.01.22"]
[Round "2.10"]
[White "Hymer, Barry"]
[Black "Bradbury, Neil H"]
[Result "0-1"]
[ECO "D00"]
[WhiteElo "1896"]
[BlackElo "2241"]
[Annotator "ChessBase"]
[PlyCount "60"]
[EventDate "2022.01.21"]
[EventType "swiss"]
[EventCountry "ENG"]
[SourceTitle "playchess.com"]
[Source "ChessBase"]
[SourceQuality "1"]
[TimeControl "5400+30"]

1. d4 {[%emt 0:00:03]} Nf6 {[%emt 0:04:33]} 2. Nc3 {[%emt 0:00:26]} d5 {[%emt 0:02:05]} 3. Bf4 {[%emt 0:00:08]} Bf5 {[%emt 0:01:40]} 4. f3 {[%emt 0:00:15]} e6 {[%emt 0:01:52]} 5. g4 {[%emt 0:00:19]} Bg6 {[%emt 0:00:31]} 6. h4 {[%emt 0:00:43]} h6 {[%emt 0:04:44]} 7. e3 {[%emt 0:00:39]} a6 {[%emt 0:05:09]} 8. Bd3 {[%emt 0:00:39]} Bxd3 {[%emt 0:01:15]} 9. Qxd3 {[%emt 0:00:31]} c5 {[%emt 0:00:06]} 10. Nge2 {[%emt 0:03:43]} Nc6 {[%emt 0:00:23]} 11. Kf2 {[%emt 0:04:42]} c4 {[%emt 0:18:15]} 12. Qd1 {[%emt 0:05:33]} g6 {[%emt 0:07:05]} 13. e4 {[%emt 0:10:59]} dxe4 {[%emt 0:07:00]} 14. Nxe4 {[%emt 0:00:13]} Nxe4+ {[%emt 0:00:23]} 15. fxe4 {[%emt 0:00:06]} Bg7 {[%emt 0:00:18]} 16. e5 {[%emt 0:10:36]} f6 {[%emt 0:04:53]} 17. exf6 {[%emt 0:03:07]} Qxf6 {[%emt 0:02:16]} 18. Kg3 {[%emt 0:01:17]} O-O-O {[%emt 0:06:11]} 19. Be3 {[%emt 0:08:15]} Rhf8 {[%emt 0:05:32]} 20. Rf1 {[%emt 0:00:31]} Qe7 {[%emt 0:00:08]} 21. c3 {[%emt 0:01:55]} Qd6+ {[%emt 0:05:31]} 22. Bf4 {[%emt 0:05:02]} Rxf4 {[%emt 0:01:59]} 23. Nxf4 {[%emt 0:00:06]} g5 {[%emt 0:00:07]} 24. Qe2 {[%emt 0:01:36]} gxf4+ {[%emt 0:01:04]} 25. Rxf4 {[%emt 0:00:32]} e5 {[%emt 0:00:20]} 26. Rf7 {[%emt 0:00:31]} exd4+ {[%emt 0:07:20]} 27. Kh3 {[%emt 0:00:08]} Be5 {[%emt 0:00:27]} 28. cxd4 {[%emt 0:03:14]} Qxd4 {[%emt 0:00:48]} 29. Rc1 {[%emt 0:02:24]} Qd3+ {[%emt 0:03:41]} 30. Qf3 {[%emt 0:00:39]} Qd2 {[%emt 0:01:34]} 0-1

[Event "27th 4NCL Congress Open 2022"]
[Site "Harrogate"]
[Date "2022.01.22"]
[Round "2.11"]
[White "Varley, Joe"]
[Black "Makkar, Rajat"]
[Result "0-1"]
[ECO "C77"]
[WhiteElo "1832"]
[BlackElo "2260"]
[Annotator "ChessBase"]
[PlyCount "108"]
[EventDate "2022.01.21"]
[EventType "swiss"]
[EventCountry "ENG"]
[SourceTitle "playchess.com"]
[Source "ChessBase"]
[SourceQuality "1"]
[TimeControl "5400+30"]

1. e4 {[%emt 0:08:52]} e5 {[%emt 0:00:33]} 2. Nf3 {[%emt 0:00:13]} Nc6 {[%emt 0:00:06]} 3. Bb5 {[%emt 0:00:10]} a6 {[%emt 0:00:13]} 4. Ba4 {[%emt 0:00:11]} Nf6 {[%emt 0:00:08]} 5. d3 {[%emt 0:00:26]} d6 {[%emt 0:00:34]} 6. c3 {[%emt 0:00:09]} g6 {[%emt 0:00:33]} 7. O-O {[%emt 0:00:14]} Bg7 {[%emt 0:00:43]} 8. Re1 {[%emt 0:00:16]} O-O {[%emt 0:01:04]} 9. Bg5 {[%emt 0:00:57]} h6 {[%emt 0:01:47]} 10. Bh4 {[%emt 0:00:08]} b5 {[%emt 0:04:09]} 11. Bc2 {[%emt 0:00:10]} g5 {[%emt 0:02:42]} 12. Bg3 {[%emt 0:00:10]} Re8 {[%emt 0:02:41]} 13. a4 {[%emt 0:03:11]} Bg4 {[%emt 0:07:15]} 14. Nbd2 {[%emt 0:05:16]} Nd7 {[%emt 0:05:55]} 15. Nf1 {[%emt 0:05:07]} Qf6 {[%emt 0:01:57]} 16. Ne3 {[%emt 0:09:40]} Bxf3 {[%emt 0:00:16]} 17. Qxf3 {[%emt 0:00:15]} Qxf3 {[%emt 0:00:10]} 18. gxf3 {[%emt 0:00:09]} Ne7 {[%emt 0:01:13]} 19. Red1 {[%emt 0:09:28]} c5 {[%emt 0:03:54]} 20. Kg2 {[%emt 0:04:57]} Nf8 {[%emt 0:03:35]} 21. Ra2 {[%emt 0:07:54]} Ne6 {[%emt 0:09:55]} 22. axb5 {[%emt 0:04:34]} axb5 {[%emt 0:00:31]} 23. Rda1 {[%emt 0:00:06]} Rab8 {[%emt 0:09:26]} 24. Ra7 {[%emt 0:04:37]} Kf8 {[%emt 0:01:02]} 25. Rd7 {[%emt 0:05:24]} Red8 {[%emt 0:01:37]} 26. Raa7 {[%emt 0:00:51]} Rxd7 {[%emt 0:06:06]} 27. Rxd7 {[%emt 0:03:19]} Nc8 {[%emt 0:00:17]} 28. Nf5 {[%emt 0:07:02]} Ke8 {[%emt 0:00:28]} 29. Rxd6 {[%emt 0:00:49]} Nxd6 {[%emt 0:00:34]} 30. Nxd6+ {[%emt 0:00:07]} Kf8 {[%emt 0:00:24]} 31. Bb3 {[%emt 0:04:51]} Rb6 {[%emt 0:07:58]} 32. Nf5 {[%emt 0:05:12]} b4 {[%emt 0:01:41]} 33. Bxe6 {[%emt 0:02:57]} Rxe6 {[%emt 0:00:24]} 34. cxb4 {[%emt 0:01:20]} cxb4 {[%emt 0:00:47]} 35. d4 {[%emt 0:00:31]} f6 {[%emt 0:04:29]} 36. b3 {[%emt 0:02:29]} Ra6 {[%emt 0:02:14]} 37. Kf1 {[%emt 0:02:35]} Ra3 {[%emt 0:01:28]} 38. dxe5 {[%emt 0:01:58]} fxe5 {[%emt 0:00:15]} 39. Nxg7 {[%emt 0:00:47]} Kxg7 {[%emt 0:00:11]} 40. Bxe5+ {[%emt 0:00:06]} Kf7 {[%emt 0:00:12]} 41. f4 {[%emt 0:00:32]} Rxb3 {[%emt 0:04:01]} 42. fxg5 {[%emt 0:00:19]} hxg5 {[%emt 0:00:11]} 43. Ke2 {[%emt 0:00:20]} Ke6 {[%emt 0:00:09]} 44. Bd4 {[%emt 0:01:00]} Rh3 {[%emt 0:00:41]} 45. Kd2 {[%emt 0:01:12]} Rxh2 {[%emt 0:00:53]} 46. Kc2 {[%emt 0:00:56]} Rh3 {[%emt 0:00:54]} 47. Kb2 {[%emt 0:00:59]} Rd3 {[%emt 0:00:26]} 48. Bc5 {[%emt 0:00:28]} b3 {[%emt 0:00:05]} 49. Ka3 {[%emt 0:00:47]} Ke5 {[%emt 0:00:12]} 50. Be7 {[%emt 0:00:36]} g4 {[%emt 0:00:13]} 51. Bc5 {[%emt 0:00:24]} Kxe4 {[%emt 0:00:08]} 52. Bb6 {[%emt 0:00:15]} Kf3 {[%emt 0:00:15]} 53. Kb2 {[%emt 0:00:20]} Rd2+ {[%emt 0:00:19]} 54. Kxb3 {[%emt 0:00:20]} Rxf2 {[%emt 0:00:08]} 0-1

[Event "27th 4NCL Congress Open 2022"]
[Site "Harrogate"]
[Date "2022.01.22"]
[Round "2.12"]
[White "McKay, Jonathan"]
[Black "Sedykh, Mikhail"]
[Result "1-0"]
[ECO "D36"]
[WhiteElo "1832"]
[BlackElo "2122"]
[Annotator "NA"]
[PlyCount "127"]
[EventDate "2022.01.21"]
[EventType "swiss"]
[EventCountry "ENG"]
[SourceTitle "playchess.com"]
[Source "ChessBase"]
[SourceQuality "1"]
[TimeControl "5400+30"]

1. d4 {[%emt 0:00:02]} d5 {[%emt 0:00:07]} 2. c4 {[%emt 0:00:08]} e6 {[%emt 0:00:03]} 3. Nc3 {[%emt 0:00:07]} Nf6 {[%emt 0:00:05]} 4. cxd5 {[%emt 0:00:08]} exd5 {[%emt 0:00:04]} 5. Bg5 {[%emt 0:00:12]} Be7 {[%emt 0:00:10]} 6. e3 {[%emt 0:00:20]} c6 {[%emt 0:00:11]} 7. Bd3 {[%emt 0:00:24]} Nbd7 {[%emt 0:00:15]} 8. Qc2 {[%emt 0:00:39]} O-O {[%emt 0:00:15]} 9. Nf3 {[%emt 0:00:31]} Re8 {[%emt 0:00:12]} 10. O-O {[%emt 0:00:32]} Nf8 {[%emt 0:00:05]} 11. h3 {[%emt 0:00:22]} Ne4 {[%emt 0:01:05]} 12. Bf4 {[%emt 0:00:30]} Ng5 {[%emt 0:00:38] is the legacy move (12...f5).} 13. Bxg5 {[%emt 0:01:09]} Bxg5 {[%emt 0:00:04]} 14. b4 {[%emt 0:00:19]} Be7 {[%emt 0:08:29]} 15. b5 {[%emt 0:00:44]} Bd6 {[%emt 0:00:08]} 16. bxc6 {[%emt 0:06:46]} bxc6 {[%emt 0:00:02]} 17. e4 {[%emt 0:03:36]} Qa5 {[%emt 0:17:44]} 18. Nd2 {[%emt 0:07:35] [#]} g6 $146 {[%emt 0:28:34]} ({Predecessor:} 18... dxe4 19. Bxe4 Bd7 20. Nc4 Qc7 21. Nxd6 Qxd6 {½-½ (21) Khenkin,I (2622)-Dorfman,J (2593) France 2000}) 19. Nb3 {[%emt 0:08:28]} Qd8 {[%emt 0:00:13]} 20. e5 {[%emt 0:05:50]} Ba3 {[%emt 0:02:23]} 21. f4 {[%emt 0:06:00]} f5 {[%emt 0:02:28]} 22. exf6 {[%emt 0:05:40]} (22. Nb1 $14 Bb4 23. Qxc6 (23. a3 Be7 $14)) 22... Qxf6 {[%emt 0:00:44]} 23. f5 {[%emt 0:01:26]} gxf5 {[%emt 0:05:13]} 24. Bxf5 {[%emt 0:08:52]} Qg5 $11 {[%emt 0:01:21]} 25. Na4 {[%emt 0:07:23]} Ba6 {[%emt 0:06:07]} 26. Rf2 {[%emt 0:07:53]} Bd6 {[%emt 0:01:40]} 27. Bg4 {[%emt 0:06:32]} Bc8 {[%emt 0:18:16]} 28. Qxc6 {[%emt 0:03:57]} Bxg4 {[%emt 0:00:37]} 29. Qxd6 {[%emt 0:02:32]} Bxh3 {[%emt 0:00:47]} 30. Nc3 {[%emt 0:03:15]} Rad8 {[%emt 0:01:08]} 31. Qf6 {[%emt 0:02:10]} Qxf6 {[%emt 0:00:37]} 32. Rxf6 {[%emt 0:00:06]} Bc8 {[%emt 0:00:25]} 33. Nc5 {[%emt 0:01:12]} Ne6 {[%emt 0:03:17]} 34. Nxe6 {[%emt 0:01:19]} Rxe6 {[%emt 0:00:11]} 35. Rf5 {[%emt 0:01:50]} Red6 {[%emt 0:00:50]} 36. Rg5+ {[%emt 0:00:26]} Kh8 {[%emt 0:01:19]} 37. Re1 {[%emt 0:00:51]} h6 {[%emt 0:00:40]} 38. Rge5 {[%emt 0:01:07]} R6d7 {[%emt 0:01:49]} 39. Na4 {[%emt 0:01:08]} Kg7 {[%emt 0:00:59]} 40. Nc5 {[%emt 0:00:18]} Rf7 {[%emt 0:00:12]} 41. Rh5 {[%emt 0:01:04]} Kg6 {[%emt 0:00:40]} 42. Ree5 {[%emt 0:01:07]} Bf5 {[%emt 0:00:40]} 43. Rh4 {[%emt 0:01:13]} h5 {[%emt 0:00:34]} 44. Rf4 {[%emt 0:00:31]} Bg4 {[%emt 0:00:32]} 45. Rxf7 {[%emt 0:01:25]} Kxf7 {[%emt 0:00:01]} 46. g3 {[%emt 0:00:21]} Rb8 {[%emt 0:00:30]} 47. Nd3 {[%emt 0:00:45]} Rb1+ {[%emt 0:00:37]} 48. Kf2 {[%emt 0:00:11]} Ra1 {[%emt 0:00:49]} 49. Nb4 {[%emt 0:00:20]} a5 {[%emt 0:00:00]} 50. Nxd5 {[%emt 0:00:29]} Rxa2+ {[%emt 0:00:00]} 51. Ke3 {[%emt 0:00:34]} Ra3+ {[%emt 0:00:54]} 52. Kf4 {[%emt 0:01:30]} Rf3+ {[%emt 0:00:05]} 53. Ke4 {[%emt 0:00:44]} a4 {[%emt 0:01:25]} 54. Re7+ {[%emt 0:00:13]} Kf8 {[%emt 0:00:26]} 55. Ra7 {[%emt 0:00:49]} a3 {[%emt 0:00:13]} 56. Ke5 {[%emt 0:00:27]} Rxg3 {[%emt 0:00:32]} 57. Nf4 {[%emt 0:00:48]} Re3+ {[%emt 0:00:55]} 58. Kf6 {[%emt 0:00:25]} Ke8 {[%emt 0:00:17]} 59. d5 {[%emt 0:00:34]} h4 {[%emt 0:00:46]} 60. Kg5 {[%emt 0:00:44]} Bd7 {[%emt 0:00:31]} 61. Kf6 {[%emt 0:01:15]} Bb5 {[%emt 0:00:31]} 62. Ne6 {[%emt 0:00:27]} Rf3+ {[%emt 0:00:18]} 63. Ke5 {[%emt 0:00:16]} h3 {[%emt 0:00:40]} 64. Kd6 {[%emt 0:00:39]} 1-0

[Event "27th 4NCL Congress Open 2022"]
[Site "Harrogate"]
[Date "2022.01.22"]
[Round "2.13"]
[White "Wilks, Simon"]
[Black "Pal, Rohan"]
[Result "0-1"]
[ECO "B31"]
[WhiteElo "2092"]
[BlackElo "1817"]
[Annotator "NA"]
[PlyCount "86"]
[EventDate "2022.01.21"]
[EventType "swiss"]
[EventCountry "ENG"]
[SourceTitle "playchess.com"]
[Source "ChessBase"]
[SourceQuality "1"]
[TimeControl "5400+30"]

1. e4 {[%emt 0:06:53]} c5 {[%emt 0:00:12]} 2. Nf3 {[%emt 0:00:24]} Nc6 {[%emt 0:00:05]} 3. Bb5 {[%emt 0:00:57]} g6 {[%emt 0:00:08]} 4. O-O {[%emt 0:01:21]} Bg7 {[%emt 0:00:09]} 5. Re1 {[%emt 0:00:47]} Nf6 {[%emt 0:01:12]} 6. e5 {[%emt 0:01:28]} Nd5 {[%emt 0:00:48]} 7. Nc3 {[%emt 0:01:06]} Nc7 {[%emt 0:04:09]} 8. Bxc6 {[%emt 0:01:29]} dxc6 {[%emt 0:00:15]} 9. Ne4 {[%emt 0:01:35]} Ne6 {[%emt 0:02:22]} 10. d3 {[%emt 0:01:51]} O-O {[%emt 0:00:59]} 11. Be3 {[%emt 0:01:39]} b6 {[%emt 0:00:47]} 12. Qd2 {[%emt 0:02:11]} Qc7 {[%emt 0:06:19]} 13. Bh6 {[%emt 0:03:10]} Rd8 {[%emt 0:01:30]} 14. Bxg7 {[%emt 0:05:43]} Kxg7 {[%emt 0:00:06]} 15. Qe3 {[%emt 0:03:56]} h6 {[%emt 0:08:34]} 16. h4 {[%emt 0:04:45]} Nd4 {[%emt 0:02:43]} 17. Nxd4 {[%emt 0:04:33]} cxd4 {[%emt 0:01:57]} 18. Qg3 {[%emt 0:04:22]} h5 {[%emt 0:06:32]} 19. f3 {[%emt 0:12:39]} Be6 {[%emt 0:02:28]} 20. Re2 {[%emt 0:04:30]} Rac8 {[%emt 0:02:22]} 21. Qg5 {[%emt 0:23:26]} Qd7 {[%emt 0:07:04]} 22. b3 {[%emt 0:03:29]} c5 {[%emt 0:01:18]} 23. a4 {[%emt 0:01:47]} a6 {[%emt 0:01:17]} 24. Ng3 {[%emt 0:00:42]} Rh8 $11 {[%emt 0:01:07]} 25. Rae1 {[%emt 0:03:55]} b5 {[%emt 0:02:06]} 26. axb5 {[%emt 0:00:21]} axb5 {[%emt 0:00:06]} 27. Re4 {[%emt 0:02:54]} Rc6 {[%emt 0:05:46]} 28. Ra1 {[%emt 0:00:54]} c4 {[%emt 0:05:30]} 29. bxc4 {[%emt 0:00:38]} bxc4 {[%emt 0:00:05]} 30. Qf4 {[%emt 0:00:19]} Rd8 {[%emt 0:00:44]} 31. Ne2 {[%emt 0:01:08]} cxd3 {[%emt 0:01:49]} 32. cxd3 {[%emt 0:00:14]} Qb7 {[%emt 0:08:10]} 33. Re1 {[%emt 0:01:19]} Qb4 {[%emt 0:03:52]} 34. Rf1 {[%emt 0:00:24]} Rc2 {[%emt 0:03:03]} 35. Nxd4 {[%emt 0:00:32]} Rxd4 {[%emt 0:02:29]} 36. Rxd4 {[%emt 0:00:04]} Qb2 {[%emt 0:00:05]} 37. Re4 {[%emt 0:01:01]} Rxg2+ {[%emt 0:00:07]} 38. Kh1 {[%emt 0:00:02]} Bh3 {[%emt 0:00:44]} 39. e6 {[%emt 0:00:59]} f6 {[%emt 0:02:13]} 40. Qc7 {[%emt 0:00:26]} Kh6 {[%emt 0:03:15]} 41. Ree1 {[%emt 0:00:34]} Rg4 {[%emt 0:01:09]} 42. Rg1 {[%emt 0:00:29]} Bg2+ {[%emt 0:00:18]} 43. Kh2 {[%emt 0:00:06]} Bf1+ {[%emt 0:00:22]} 0-1

[Event "27th 4NCL Congress Open 2022"]
[Site "Harrogate"]
[Date "2022.01.22"]
[Round "2.14"]
[White "Smith, Andrew Philip"]
[Black "Lampard, Alice"]
[Result "1/2-1/2"]
[ECO "B50"]
[WhiteElo "2112"]
[BlackElo "1754"]
[Annotator "NA"]
[PlyCount "73"]
[EventDate "2022.01.21"]
[EventType "swiss"]
[EventCountry "ENG"]
[SourceTitle "playchess.com"]
[Source "ChessBase"]
[SourceQuality "1"]
[TimeControl "5400+30"]

1. e4 {[%emt 0:03:17]} c5 {[%emt 0:00:14]} 2. Nf3 {[%emt 0:00:33]} Nc6 {[%emt 0:00:26]} 3. b3 {[%emt 0:00:27]} d6 {[%emt 0:02:09]} 4. Bb2 {[%emt 0:01:25]} Nf6 {[%emt 0:01:10]} 5. Nc3 {[%emt 0:02:11]} e5 {[%emt 0:04:30]} 6. Bc4 {[%emt 0:06:01]} Be7 {[%emt 0:04:56]} 7. h3 {[%emt 0:00:57]} Bd7 {[%emt 0:01:45]} 8. Qe2 {[%emt 0:07:02]} h6 {[%emt 0:03:59]} 9. Nd5 {[%emt 0:20:55]} Rb8 {[%emt 0:09:38]} 10. c3 {[%emt 0:01:56]} a6 {[%emt 0:06:57]} 11. O-O {[%emt 0:03:53]} b5 {[%emt 0:04:28]} 12. Nxf6+ {[%emt 0:01:28]} Bxf6 {[%emt 0:02:52]} 13. Bd5 {[%emt 0:01:12]} O-O {[%emt 0:04:29]} 14. d4 $1 {[%emt 0:01:27]} exd4 {[%emt 0:12:54]} 15. cxd4 {[%emt 0:00:45]} Re8 {[%emt 0:01:21]} 16. dxc5 {[%emt 0:07:52]} Bxb2 {[%emt 0:04:36]} (16... dxc5 $11 17. Rad1 Qe7) 17. Qxb2 {[%emt 0:00:13]} dxc5 {[%emt 0:00:52]} 18. Rac1 {[%emt 0:11:23]} Nb4 $11 {[%emt 0:10:43]} 19. Rfd1 {[%emt 0:03:21]} Qe7 {[%emt 0:01:54]} 20. a3 {[%emt 0:07:32]} Nxd5 {[%emt 0:03:52]} 21. exd5 {[%emt 0:08:13]} Qd6 {[%emt 0:04:37]} 22. Qc3 {[%emt 0:05:05]} Rbc8 {[%emt 0:06:36]} 23. Nd2 {[%emt 0:00:49]} Re5 {[%emt 0:03:17]} 24. Nf1 {[%emt 0:01:21]} Rxd5 {[%emt 0:01:03]} 25. Ne3 {[%emt 0:00:07]} Rd4 {[%emt 0:02:08]} 26. Qa1 {[%emt 0:02:34]} Be6 {[%emt 0:00:53]} 27. b4 {[%emt 0:00:13]} Rxd1+ {[%emt 0:00:38]} 28. Rxd1 {[%emt 0:00:05]} Qe7 {[%emt 0:00:17]} 29. Qe5 {[%emt 0:01:18]} Qf8 {[%emt 0:01:03]} 30. Rd6 {[%emt 0:00:26]} c4 {[%emt 0:00:40]} 31. Rxa6 {[%emt 0:00:38]} c3 {[%emt 0:00:23]} 32. Nc2 {[%emt 0:00:07]} Bb3 {[%emt 0:00:22]} 33. Qe4 {[%emt 0:00:58]} Re8 {[%emt 0:00:33]} 34. Qd3 {[%emt 0:00:18]} Bxc2 {[%emt 0:00:28]} 35. Qxc2 {[%emt 0:00:13]} Rc8 {[%emt 0:00:31]} 36. Ra7 {[%emt 0:00:47]} Qe8 {[%emt 0:00:30]} 37. g3 {[%emt 0:02:10]} 1/2-1/2

[Event "27th 4NCL Congress Open 2022"]
[Site "Harrogate"]
[Date "2022.01.22"]
[Round "2.15"]
[White "Wynarczyk, Raymond"]
[Black "Eagleton, Greg T"]
[Result "1/2-1/2"]
[ECO "B51"]
[WhiteElo "1752"]
[BlackElo "2078"]
[Annotator "ChessBase"]
[PlyCount "45"]
[EventDate "2022.01.21"]
[EventType "swiss"]
[EventCountry "ENG"]
[SourceTitle "playchess.com"]
[Source "ChessBase"]
[SourceQuality "1"]
[TimeControl "5400+30"]

1. e4 {[%emt 0:00:05]} c5 {[%emt 0:02:50]} 2. Nf3 {[%emt 0:00:08]} d6 {[%emt 0:00:09]} 3. Bb5+ {[%emt 0:00:11]} Nd7 {[%emt 0:00:42]} 4. d4 {[%emt 0:00:31]} cxd4 {[%emt 0:00:34]} 5. Qxd4 {[%emt 0:00:09]} a6 {[%emt 0:00:08]} 6. Bxd7+ {[%emt 0:01:01]} Bxd7 {[%emt 0:00:33]} 7. Nc3 {[%emt 0:00:19]} e5 {[%emt 0:07:40]} 8. Qd3 {[%emt 0:01:43]} h6 {[%emt 0:02:09]} 9. O-O {[%emt 0:01:17]} Nf6 {[%emt 0:01:12]} 10. h3 {[%emt 0:01:36]} Be7 {[%emt 0:02:21]} 11. Be3 {[%emt 0:01:01]} O-O {[%emt 0:07:47]} 12. Rfe1 {[%emt 0:03:30]} b5 {[%emt 0:04:37]} 13. a3 {[%emt 0:03:08]} Qc7 {[%emt 0:00:15]} 14. Nh4 {[%emt 0:03:02]} Rac8 {[%emt 0:07:41]} 15. Nf5 {[%emt 0:01:20]} Bxf5 {[%emt 0:02:02]} 16. exf5 {[%emt 0:00:08]} d5 {[%emt 0:05:53]} 17. Nxd5 {[%emt 0:02:15]} Nxd5 {[%emt 0:00:15]} 18. Qxd5 {[%emt 0:00:09]} Rfd8 {[%emt 0:00:38]} 19. Qe4 {[%emt 0:02:32]} Qxc2 {[%emt 0:00:55]} 20. Qg4 {[%emt 0:02:30]} Rc4 {[%emt 0:06:44]} 21. Rac1 {[%emt 0:04:52]} Qxc1 {[%emt 0:10:25]} 22. Rxc1 {[%emt 0:00:21]} Rxg4 {[%emt 0:00:05]} 23. hxg4 {[%emt 0:00:23]} 1/2-1/2

[Event "27th 4NCL Congress Open 2022"]
[Site "Harrogate"]
[Date "2022.01.22"]
[Round "2.16"]
[White "Gardiner, Eric D"]
[Black "Sheppard, Derek Alan"]
[Result "1-0"]
[ECO "B22"]
[WhiteElo "1982"]
[BlackElo "1692"]
[Annotator "NA"]
[PlyCount "55"]
[EventDate "2022.01.21"]
[EventType "swiss"]
[EventCountry "ENG"]
[SourceTitle "playchess.com"]
[Source "ChessBase"]
[SourceQuality "1"]
[TimeControl "5400+30"]

1. e4 {[%emt 0:00:05]} c5 {[%emt 0:00:08]} 2. c3 {[%emt 0:00:09]} d5 {[%emt 0:00:14]} 3. exd5 {[%emt 0:00:09]} Qxd5 {[%emt 0:00:08]} 4. d4 {[%emt 0:00:14]} cxd4 {[%emt 0:00:41]} 5. cxd4 {[%emt 0:00:09]} Nc6 {[%emt 0:03:27]} 6. Nf3 {[%emt 0:00:38]} Bg4 {[%emt 0:04:12]} 7. Nc3 {[%emt 0:00:22]} Qd8 {[%emt 0:02:50]} 8. d5 {[%emt 0:04:17]} Bxf3 {[%emt 0:07:17]} 9. gxf3 {[%emt 0:02:51]} Ne5 {[%emt 0:04:42]} 10. f4 {[%emt 0:01:44]} Nd7 {[%emt 0:00:16]} 11. Bg2 {[%emt 0:03:10]} Ngf6 {[%emt 0:02:15]} 12. Be3 {[%emt 0:04:37]} g6 {[%emt 0:00:40]} 13. O-O {[%emt 0:03:50]} Bg7 {[%emt 0:00:09]} 14. d6 {[%emt 0:04:34]} O-O {[%emt 0:11:43]} 15. f5 {[%emt 0:08:44]} exd6 {[%emt 0:08:31]} 16. Qxd6 {[%emt 0:03:13]} Ng4 {[%emt 0:08:13]} 17. Qg3 $11 {[%emt 0:13:17]} (17. Bxb7 $2 Rb8 18. f6 Bxf6 $19) 17... gxf5 {[%emt 0:11:15]} 18. Bf4 {[%emt 0:01:32]} ({Reject} 18. Bxb7 Nxe3 19. Qxe3 (19. fxe3 Rb8 $15) 19... Re8 $15) 18... Nge5 {[%emt 0:06:08]} 19. Rad1 {[%emt 0:10:40]} Qf6 {[%emt 0:00:48]} 20. Nd5 {[%emt 0:03:30]} Qa6 {[%emt 0:06:02]} 21. Nc7 {[%emt 0:04:40]} Qf6 {[%emt 0:01:19]} 22. Nxa8 {[%emt 0:00:48]} Rxa8 {[%emt 0:00:10]} 23. Rd2 {[%emt 0:05:06]} Kh8 {[%emt 0:01:29]} 24. Rfd1 {[%emt 0:02:07]} Qe7 {[%emt 0:05:37]} 25. Qe3 {[%emt 0:07:06]} Re8 {[%emt 0:08:04]} 26. b3 {[%emt 0:02:28]} Bf6 {[%emt 0:04:10]} 27. Kf1 {[%emt 0:04:13]} Rd8 {[%emt 0:00:34]} 28. Bxe5 {[%emt 0:04:53]} 1-0